bitfinex/quotes_SOLUSD_20241107
["timestamp","ask_amount","ask_price","bid_price","bid_amount"]
[1730946446497,0.12549,190.66,190.58,10.05581251]
[1730946446663,23.902374,190.64,190.58,10.05581251]
[1730946446996,23.776884,190.66,190.58,10.05581251]
[1730946447280,23.776884,190.66,190.53,15.1795]
[1730946447486,23.776884,190.64,190.59,10.05581251]
[1730946447688,0.12549,190.63,190.57,10.05581251]
[1730946447860,0.12549,190.63,190.61,10.05581251]
[1730946448070,17.66687425,190.68,190.53,15.3795]
[1730946448286,23.776884,190.67,190.61,10.05581251]
[1730946448459,23.776884,190.67,190.62,10.05581251]
[1730946448661,16.4107,190.72,190.64,10.05581251]
[1730946448884,16.4107,190.72,190.66,10.05581251]
[1730946449104,0.12549,190.71,190.67,10.05581251]
[1730946449287,10.05581251,190.74,190.67,10.05581251]
[1730946449665,0.12549,190.7,190.67,10.05581251]
[1730946449864,10.05581251,190.74,190.67,10.05581251]
[1730946450671,23.776884,190.72,190.67,10.05581251]
[1730946450882,23.776884,190.72,190.66,10.05581251]
[1730946451088,0.12549,190.71,190.66,10.05581251]
[1730946451262,23.776884,190.7,190.65,10.05581251]
[1730946451594,0.12549,190.69,190.64,10.05581251]
[1730946452071,0.12549,190.67,190.62,10.05581251]
[1730946452276,0.12549,190.67,190.61,16.2614]
[1730946452473,0.12549,190.67,190.62,10.05581251]
[1730946453992,0.12549,190.65,190.6,10.05581251]
[1730946454287,23.902374,190.65,190.6,10.05581251]
[1730946454786,33.95818651,190.65,190.59,10.05581251]
[1730946455290,0.12549,190.63,190.58,10.05581251]
[1730946455790,23.902374,190.63,190.57,10.05581251]
[1730946455988,0.12549,190.6,190.52,0.1]
[1730946456289,0.12549,190.6,190.56,10.05581251]
[1730946456591,0.12549,190.6,190.51,22.5611]
[1730946456789,0.12549,190.57,190.52,10.05581251]
[1730946456964,10.18130251,190.57,190.51,16.235]
[1730946457165,10.18130251,190.57,190.51,26.29081251]
[1730946457397,10.18130251,190.57,190.49,0.5785332]
[1730946457398,0.12549,190.53,190.49,0.5785332]
[1730946458076,0.12549,190.53,190.5,15.73681593]
[1730946458395,23.776884,190.56,190.51,15.73681593]
[1730946458584,0.12549,190.55,190.51,15.73681593]
[1730946459393,15.73681593,190.58,190.52,15.73681593]
[1730946459577,15.73681593,190.6,190.53,15.73681593]
[1730946459780,15.73681593,190.6,190.54,15.73681593]
[1730946460089,0.12549,190.59,190.53,15.73681593]
[1730946460391,0.12549,190.59,190.54,15.73681593]
[1730946460875,23.902374,190.6,190.54,15.73681593]
[1730946461774,39.63918993,190.6,190.54,15.73681593]
[1730946462694,23.902374,190.6,190.55,15.73681593]
[1730946463291,23.902374,190.61,190.55,15.73681593]
[1730946464275,23.902374,190.59,190.52,15.3645]
[1730946464597,23.902374,190.59,190.53,15.73681593]
[1730946464974,23.902374,190.59,190.52,15.3645]
[1730946464975,23.902374,190.59,190.55,15.73681593]
[1730946465285,23.902374,190.6,190.55,15.73681593]
[1730946465823,23.902374,190.6,190.52,15.3645]
[1730946466005,23.902374,190.6,190.55,15.73681593]
[1730946466299,23.902374,190.61,190.56,15.73681593]
[1730946466500,15.73681593,190.64,190.57,15.73681593]
[1730946466680,15.73681593,190.65,190.58,15.73681593]
[1730946466993,0.12549,190.64,190.58,15.73681593]
[1730946467202,15.86230593,190.64,190.58,15.73681593]
[1730946467586,15.73681593,190.65,190.58,15.73681593]
[1730946467791,23.902374,190.64,190.58,15.73681593]
[1730946468489,15.86230593,190.64,190.58,15.73681593]
[1730946468796,0.12549,190.62,190.57,15.73681593]
[1730946470407,0.12549,190.62,190.58,15.73681593]
[1730946470884,0.12549,190.62,190.6,15.73681593]
[1730946471308,15.73681593,190.65,190.59,15.73681593]
[1730946471498,15.73681593,190.64,190.57,15.73681593]
[1730946471686,0.12549,190.61,190.55,15.73681593]
[1730946472088,0.12549,190.61,190.56,15.73681593]
[1730946472287,0.12549,190.62,190.58,15.73681593]
[1730946472487,0.12549,190.62,190.59,15.73681593]
[1730946472808,5.33154995,190.66,190.6,15.73681593]
[1730946473003,5.33154995,190.66,190.61,15.73681593]
[1730946473217,0.12549,190.65,190.61,15.73681593]
[1730946473584,15.73681593,190.67,190.61,15.73681593]
[1730946473999,15.73681593,190.68,190.62,15.73681593]
[1730946474211,1.32426131,190.74,190.66,15.73681593]
[1730946474496,1.32426131,190.74,190.6,15.93681593]
[1730946474497,0.12549,190.7,190.67,15.73681593]
[1730946474803,15.73681593,190.73,190.67,15.73681593]
[1730946474987,5.33707894,190.71,190.67,15.73681593]
[1730946475185,0.12549,190.7,190.67,15.73681593]
[1730946475395,23.902374,190.7,190.65,15.73681593]
[1730946475612,23.902374,190.7,190.66,15.73681593]
[1730946475779,23.776884,190.7,190.66,15.73681593]
[1730946475975,23.776884,190.7,190.64,15.73681593]
[1730946475976,0.12549,190.69,190.64,15.73681593]
[1730946477409,15.86230593,190.65,190.52,17.40839515]
[1730946477629,39.63918993,190.62,190.56,15.73681593]
[1730946480924,39.63918993,190.62,190.55,15.73681593]
[1730946481424,23.902374,190.62,190.57,15.73681593]
[1730946481633,23.902374,190.63,190.57,15.73681593]
[1730946482615,38.07801593,190.68,190.61,15.73681593]
[1730946482825,5.33707894,190.71,190.65,15.73681593]
[1730946483026,31.26231593,190.73,190.66,15.73681593]
[1730946483209,31.26231593,190.73,190.67,15.73681593]
[1730946483421,0.12549,190.72,190.67,15.73681593]
[1730946483597,0.12549,190.72,190.66,15.73681593]
[1730946484108,39.63918993,190.72,190.65,15.73681593]
[1730946484429,0.12549,190.68,190.63,15.73681593]
[1730946484812,23.902374,190.68,190.63,15.73681593]
[1730946485009,23.902374,190.68,190.62,15.73681593]
[1730946485213,39.63918993,190.68,190.62,15.73681593]
[1730946485431,0.12549,190.66,190.6,15.73681593]
[1730946485605,39.63918993,190.66,190.6,15.73681593]
[1730946485927,0.12549,190.64,190.59,15.73681593]
[1730946486120,23.902374,190.64,190.59,15.73681593]
[1730946486327,39.63918993,190.64,190.58,15.73681593]
[1730946486635,23.902374,190.64,190.58,15.73681593]
[1730946486823,23.902374,190.62,190.57,15.73681593]
[1730946487136,23.902374,190.62,190.56,15.73681593]
[1730946487500,39.63918993,190.62,190.56,15.73681593]
[1730946488123,23.902374,190.62,190.56,15.73681593]
[1730946489028,39.63918993,190.62,190.51,15.5309]
[1730946489241,23.902374,190.62,190.55,15.73681593]
[1730946489407,39.63918993,190.62,190.55,15.73681593]
[1730946489602,23.902374,190.62,190.55,15.73681593]
[1730946489928,39.63918993,190.62,190.55,15.73681593]
[1730946490814,0.12549,190.6,190.54,15.73681593]
[1730946491128,23.902374,190.59,190.54,15.73681593]
[1730946492107,23.902374,190.56,190.5,15.73681593]
[1730946492343,39.63918993,190.56,190.49,16.31534913]
[1730946492633,23.902374,190.54,190.49,16.31534913]
[1730946493429,23.902374,190.55,190.49,16.31534913]
[1730946493726,23.902374,190.55,190.5,15.73681593]
[1730946494228,23.902374,190.56,190.5,15.73681593]
[1730946494407,39.63918993,190.56,190.5,15.73681593]
[1730946494609,39.63918993,190.56,190.49,0.5785332]
[1730946494610,0.12549,190.54,190.49,0.5785332]
[1730946494829,23.902374,190.54,190.49,0.5785332]
[1730946495330,23.902374,190.55,190.49,16.31534913]
[1730946495535,15.86230593,190.55,190.49,16.31534913]
[1730946495839,0.12549,190.53,190.49,16.31534913]
[1730946497431,0.12549,190.53,190.5,15.73681593]
[1730946501853,23.776884,190.54,190.51,15.73681593]
[1730946502036,5.33657888,190.57,190.53,15.73681593]
[1730946502356,6.5581,190.61,190.56,15.73681593]
[1730946502525,5.37911563,190.6,190.56,15.73681593]
[1730946503050,0.12549,190.59,190.56,15.73681593]
[1730946503339,23.902374,190.59,190.56,15.73681593]
[1730946504122,5.37911563,190.6,190.58,15.73681593]
[1730946504337,5.37911563,190.6,190.59,15.73681593]
[1730946504544,31.76721593,190.65,190.58,15.73681593]
[1730946504723,0.12549,190.64,190.58,15.73681593]
[1730946504924,15.86230593,190.64,190.57,15.73681593]
[1730946505226,15.86230593,190.62,190.55,15.73681593]
[1730946505426,23.902374,190.6,190.54,15.73681593]
[1730946505840,23.902374,190.6,190.55,15.73681593]
[1730946506148,23.902374,190.61,190.56,15.73681593]
[1730946508752,23.902374,190.61,190.5,15.4475]
[1730946508920,23.902374,190.61,190.56,15.73681593]
[1730946512327,23.902374,190.62,190.56,15.73681593]
[1730946512551,39.63918993,190.62,190.56,15.73681593]
[1730946512846,39.63918993,190.62,190.5,15.4475]
[1730946513148,39.63918993,190.62,190.55,15.73681593]
[1730946513332,39.63918993,190.62,190.56,15.73681593]
[1730946515432,33.96901449,190.62,190.55,10.06664049]
[1730946515944,23.902374,190.6,190.5,15.4475]
[1730946516128,16.1304,190.65,190.5,15.4475]
[1730946516129,23.902374,190.58,190.5,15.4475]
[1730946516449,23.902374,190.58,190.52,10.06664049]
[1730946517230,23.902374,190.58,190.53,10.06664049]
[1730946517428,0.12549,190.58,190.53,10.06664049]
[1730946520048,0.12549,190.58,190.55,10.06664049]
[1730946521333,0.12549,190.58,190.54,10.06664049]
[1730946523160,0.12549,190.58,190.55,10.06664049]
[1730946524085,10.19213049,190.58,190.5,15.4475]
[1730946524235,10.19213049,190.56,190.49,10.64517369]
[1730946524436,23.902374,190.54,190.49,10.64517369]
[1730946525169,23.902374,190.55,190.49,10.64517369]
[1730946526752,0.12549,190.55,190.51,10.06664049]
[1730946527064,7.22194517,190.63,190.49,0.5785332]
[1730946527065,10.06664049,190.6,190.54,10.06664049]
[1730946527248,15.42127382,190.6,190.54,10.06664049]
[1730946528161,5.35463333,190.6,190.54,10.06664049]
[1730946528364,0.12549,190.59,190.54,10.06664049]
[1730946529156,23.902374,190.59,190.54,10.06664049]
[1730946529363,23.902374,190.59,190.54,15.73118407]
[1730946530760,23.902374,190.59,190.53,15.73118407]
[1730946531069,21.0858174,190.6,190.49,0.5785332]
[1730946531070,23.902374,190.57,190.52,15.73118407]
[1730946531257,39.63355807,190.57,190.51,15.73118407]
[1730946531841,23.902374,190.57,190.51,15.73118407]
[1730946534267,39.63355807,190.57,190.51,15.73118407]
[1730946535264,15.73118407,190.53,190.49,0.5785332]
[1730946535570,23.902374,190.52,190.49,0.5785332]
[1730946535744,23.902374,190.52,190.5,15.73118407]
[1730946537480,23.902374,190.52,190.49,16.30971727]
[1730946539069,23.902374,190.52,190.49,0.5785332]
[1730946539950,23.902374,190.53,190.49,0.5785332]
[1730946541367,39.63355807,190.51,190.49,0.5785332]
[1730946541581,23.902374,190.53,190.49,0.5785332]
[1730946541582,39.63355807,190.5,190.49,0.5785332]
[1730946541755,39.63355807,190.5,190.49,1e-08]
[1730946544480,23.776884,190.5,190.49,1e-08]
[1730946544980,23.902374,190.5,190.49,1e-08]
[1730946545157,39.63355807,190.5,190.49,1e-08]
[1730946548982,0.12549,190.49,190.36,16.5847]
[1730946549184,23.902374,190.43,190.38,15.73118407]
[1730946549480,23.902374,190.43,190.38,10.08557222]
[1730946550078,23.902374,190.43,190.36,16.5847]
[1730946550380,33.98794622,190.44,190.36,16.5847]
[1730946550585,33.98794622,190.44,190.38,10.08557222]
[1730946551482,23.902374,190.42,190.36,16.5847]
[1730946551776,23.902374,190.42,190.38,10.08557222]
[1730946552080,0.12549,190.42,190.38,10.08557222]
[1730946552462,0.12549,190.42,190.39,10.08557222]
[1730946552665,0.12549,190.42,190.4,10.08557222]
[1730946554167,5.36975807,190.48,190.41,10.08557222]
[1730946554378,15.45533029,190.48,190.42,10.08557222]
[1730946554685,15.45533029,190.48,190.36,16.5847]
[1730946554686,0.12549,190.47,190.41,10.08557222]
[1730946554983,0.12549,190.41,190.31,0.5785332]
[1730946555207,0.12549,190.38,190.32,10.08557222]
[1730946555481,0.12549,190.38,190.34,10.08557222]
[1730946556594,0.12549,190.38,190.31,0.5785332]
[1730946556797,0.12549,190.38,190.34,10.08557222]
[1730946557777,10.21106222,190.38,190.31,0.5785332]
[1730946558003,0.12549,190.38,190.33,10.08557222]
[1730946558579,0.12549,190.38,190.34,10.08557222]
[1730946560707,0.12549,190.38,190.33,10.08557222]
[1730946560902,0.12549,190.38,190.32,10.08557222]
[1730946561094,0.12549,190.36,190.32,10.08557222]
[1730946562407,0.12549,190.36,190.31,10.66410542]
[1730946564187,0.12549,190.36,190.32,10.08557222]
[1730946564389,0.12549,190.36,190.31,0.5785332]
[1730946564599,0.12549,190.36,190.31,10.66410542]
[1730946565306,21.86169,190.36,190.31,0.5785332]
[1730946565492,23.776884,190.33,190.31,0.5785332]
[1730946565688,15.4284,190.4,190.31,10.66410542]
[1730946565895,23.776884,190.38,190.32,10.08557222]
[1730946566511,23.776884,190.38,190.33,10.08557222]
[1730946567093,0.12549,190.37,190.33,10.08557222]
[1730946568882,0.12549,190.37,190.32,10.08557222]
[1730946569086,0.12549,190.37,190.31,0.5785332]
[1730946569288,0.12549,190.37,190.33,10.08557222]
[1730946570409,0.12549,190.35,190.31,0.5785332]
[1730946570620,23.902374,190.33,190.31,0.5785332]
[1730946571019,0.12549,190.33,190.31,0.5785332]
[1730946573212,23.902374,190.32,190.31,0.5785332]
[1730946575212,33.98794622,190.32,190.31,0.5785332]
[1730946575719,23.902374,190.32,190.31,0.5785332]
[1730946577510,23.776884,190.32,190.31,10.66410542]
[1730946577702,5.36835968,190.37,190.31,10.66410542]
[1730946577907,5.36835968,190.37,190.32,9.08557222]
[1730946578505,0.12549,190.36,190.32,9.08557222]
[1730946579813,23.902374,190.36,190.32,10.08557222]
[1730946582024,5.36835968,190.37,190.35,10.08557222]
[1730946582206,21.3254,190.45,190.36,10.08557222]
[1730946582418,10.08557222,190.47,190.41,10.08557222]
[1730946582617,0.12549,190.45,190.39,10.08557222]
[1730946582921,10.21106222,190.45,190.39,10.08557222]
[1730946583122,0.12549,190.43,190.31,20.5785332]
[1730946583435,10.08557222,190.43,190.37,10.08557222]
[1730946583603,0.12549,190.42,190.36,10.08557222]
[1730946584719,23.902374,190.42,190.36,10.08557222]
[1730946584924,0.12549,190.39,190.31,0.5785332]
[1730946585127,23.902374,190.39,190.31,0.5785332]
[1730946585330,23.902374,190.37,190.31,10.66410542]
[1730946585507,23.902374,190.37,190.32,10.08557222]
[1730946585903,23.902374,190.38,190.33,10.08557222]
[1730946586628,33.98794622,190.38,190.32,10.08557222]
[1730946587127,33.98794622,190.38,190.31,10.66410542]
[1730946587329,0.12549,190.36,190.31,10.66410542]
[1730946587635,23.902374,190.36,190.31,10.66410542]
[1730946587819,0.12549,190.36,190.31,10.66410542]
[1730946589165,0.12549,190.36,190.31,0.5785332]
[1730946589430,0.12549,190.36,190.31,10.66410542]
[1730946590023,0.12549,190.36,190.32,10.08557222]
[1730946591410,22.3701,190.41,190.35,10.08557222]
[1730946591611,6.3294,190.45,190.39,10.08557222]
[1730946592150,10.21106222,190.44,190.37,10.08557222]
[1730946592437,0.12549,190.41,190.36,10.08557222]
[1730946593342,10.08557222,190.43,190.37,10.08557222]
[1730946593641,33.98794622,190.44,190.37,10.08557222]
[1730946593821,33.98794622,190.44,190.38,10.08557222]
[1730946594525,23.902374,190.44,190.38,10.08557222]
[1730946594839,33.98794622,190.44,190.38,10.08557222]
[1730946595540,33.98794622,190.44,190.37,10.08557222]
[1730946595745,33.98794622,190.44,190.38,10.08557222]
[1730946596346,33.98794622,190.44,190.37,10.08557222]
[1730946596864,10.08557222,190.44,190.38,10.08557222]
[1730946597028,0.12549,190.43,190.37,10.08557222]
[1730946597429,0.12549,190.43,190.31,20.5785332]
[1730946597633,10.21106222,190.41,190.31,0.5785332]
[1730946597834,0.12549,190.39,190.34,10.08557222]
[1730946598155,23.902374,190.39,190.34,10.08557222]
[1730946598742,23.902374,190.4,190.34,10.08557222]
[1730946600752,33.98794622,190.4,190.33,10.08557222]
[1730946601056,10.08557222,190.38,190.32,10.08557222]
[1730946601231,23.902374,190.37,190.31,10.66410542]
[1730946601434,33.98794622,190.37,190.31,10.66410542]
[1730946601663,23.902374,190.37,190.31,10.66410542]
[1730946601960,10.08557222,190.38,190.33,10.08557222]
[1730946601961,23.902374,190.38,190.33,10.08557222]
[1730946602463,23.902374,190.38,190.32,10.08557222]
[1730946603648,7.97060383,190.44,190.36,10.08557222]
[1730946603649,1.33177652,190.44,190.36,10.08557222]
[1730946603952,1.33177652,190.44,190.31,0.5785332]
[1730946603953,6.4006,190.52,190.4,10.08557222]
[1730946604152,11.90761452,190.46,190.44,10.08557222]
[1730946604459,6.27628413,190.51,190.45,10.08557222]
[1730946604636,10.08557222,190.49,190.42,10.08557222]
[1730946604844,0.12549,190.47,190.42,10.08557222]
[1730946605058,0.12549,190.44,190.37,15.1561]
[1730946605353,0.12549,190.44,190.38,10.08557222]
[1730946605541,10.08557222,190.44,190.38,10.08557222]
[1730946605741,23.776884,190.4,190.32,16.2734]
[1730946605936,0.12549,190.37,190.33,10.08557222]
[1730946606337,0.12549,190.37,190.34,10.08557222]
[1730946607055,0.12549,190.37,190.33,10.08557222]
[1730946608458,0.12549,190.37,190.32,10.08557222]
[1730946609347,0.12549,190.37,190.33,10.08557222]
[1730946609664,0.12549,190.37,190.34,10.08557222]
[1730946612758,0.12549,190.37,190.33,10.08557222]
[1730946613565,23.902374,190.35,190.31,0.5785332]
[1730946613861,0.12549,190.35,190.31,0.5785332]
[1730946614164,0.12549,190.35,190.31,10.66410542]
[1730946614840,0.12549,190.35,190.32,10.08557222]
[1730946615982,0.12549,190.35,190.33,10.08557222]
[1730946616179,6.2777,190.43,190.31,0.5785332]
[1730946616469,6.2777,190.43,190.39,10.08557222]
[1730946616771,6.2777,190.43,190.38,10.08557222]
[1730946617967,0.12549,190.42,190.38,10.08557222]
[1730946618193,23.902374,190.42,190.38,10.08557222]
[1730946619474,5.36789589,190.47,190.41,10.08557222]
[1730946619659,5.36789589,190.47,190.42,10.08557222]
[1730946620171,22.8276328,190.49,190.35,16.6733]
[1730946620172,6.5355328,190.49,190.44,10.08557222]
[1730946620343,6.5355328,190.49,190.48,10.08557222]
[1730946620549,6.5355328,190.49,190.42,0.1]
[1730946620762,6.5355328,190.49,190.48,10.08557222]
[1730946621070,6.5355328,190.49,190.44,0.2]
[1730946621249,6.5355328,190.49,190.48,10.08557222]
[1730946621455,6.0355328,190.49,190.48,10.08557222]
[1730946622763,10.08557222,190.6,190.48,10.08557222]
[1730946622952,14.00604338,190.59,190.48,10.08557222]
[1730946623154,10.08557222,190.59,190.48,10.08557222]
[1730946623355,15.73390112,190.59,190.53,15.73390112]
[1730946623550,5.36387133,190.61,190.54,15.73390112]
[1730946623874,15.73390112,190.64,190.58,15.73390112]
[1730946624055,3.91423064,190.63,190.58,15.73390112]
[1730946624246,15.73390112,190.64,190.58,15.73390112]
[1730946624446,15.73390112,190.65,190.58,15.73390112]
[1730946624647,11.51340904,190.67,190.5,6.668]
[1730946624648,15.73390112,190.63,190.5,6.668]
[1730946624869,15.73390112,190.63,190.56,15.73390112]
[1730946624870,0.12549,190.62,190.56,15.73390112]
[1730946625470,15.73390112,190.64,190.58,15.73390112]
[1730946625655,15.73390112,190.65,190.59,15.73390112]
[1730946625863,15.73390112,190.66,190.6,15.73390112]
[1730946626256,15.73390112,190.66,190.59,15.73390112]
[1730946626578,11.51340904,190.67,190.6,15.73390112]
[1730946626579,5.36210904,190.67,190.6,15.73390112]
[1730946626899,0.12549,190.65,190.59,15.73390112]
[1730946627252,15.85939112,190.65,190.59,15.73390112]
[1730946627774,15.85939112,190.66,190.6,15.73390112]
[1730946627948,0.12549,190.66,190.6,15.73390112]
[1730946628150,21.09601016,190.67,190.6,15.73390112]
[1730946628351,0.12549,190.66,190.6,15.73390112]
[1730946628852,0.12549,190.64,190.59,15.73390112]
[1730946629057,0.12549,190.64,190.58,15.73390112]
[1730946629278,1.31135501,190.7,190.59,15.73390112]
[1730946629566,0.12549,190.63,190.58,15.73390112]
[1730946630155,0.12549,190.64,190.58,15.73390112]
[1730946630557,0.12549,190.64,190.6,15.73390112]
[1730946630780,15.73390112,190.67,190.61,15.73390112]
[1730946631095,23.776884,190.67,190.61,15.73390112]
[1730946631296,5.36151372,190.69,190.64,15.73390112]
[1730946631483,21.91800112,190.72,190.66,15.73390112]
[1730946631695,6.1841,190.72,190.66,15.73390112]
[1730946632068,21.91800112,190.72,190.66,15.73390112]
[1730946632273,6.1841,190.72,190.66,15.73390112]
[1730946633002,15.73390112,190.74,190.68,15.73390112]
[1730946633499,15.73390112,190.73,190.66,15.73390112]
[1730946633871,0.12549,190.72,190.66,15.73390112]
[1730946634187,0.12549,190.72,190.6,22.59330112]
[1730946634188,23.902374,190.72,190.67,15.73390112]
[1730946634388,23.902374,190.72,190.66,15.73390112]
[1730946634591,0.12549,190.7,190.65,15.73390112]
[1730946634790,15.85939112,190.68,190.62,15.73390112]
[1730946635300,15.85939112,190.68,190.61,15.73390112]
[1730946635479,15.85939112,190.68,190.62,15.73390112]
[1730946635875,23.776884,190.67,190.62,15.73390112]
[1730946636077,0.12549,190.66,190.61,15.73390112]
[1730946636482,0.1,190.8,190.63,15.73390112]
[1730946636679,0.2,190.81,190.67,15.73390112]
[1730946636880,0.12549,190.73,190.67,15.73390112]
[1730946637800,0.12549,190.74,190.68,15.73390112]
[1730946637999,23.902374,190.74,190.68,15.73390112]
[1730946638202,23.902374,190.74,190.69,15.73390112]
[1730946638405,23.902374,190.74,190.7,15.73390112]
[1730946638579,23.902374,190.75,190.69,15.73390112]
[1730946639299,23.902374,190.75,190.68,15.73390112]
[1730946639300,15.85939112,190.75,190.68,15.73390112]
[1730946639504,0.12549,190.73,190.68,15.73390112]
[1730946640298,23.902374,190.71,190.65,15.73390112]
[1730946640502,15.83390112,190.8,190.68,15.73390112]
[1730946640677,15.73390112,190.75,190.69,15.73390112]
[1730946641082,0.12549,190.74,190.69,15.73390112]
[1730946641508,37.85950112,190.77,190.7,15.73390112]
[1730946641692,22.1256,190.77,190.71,15.73390112]
[1730946642001,0.12549,190.76,190.71,15.73390112]
[1730946642417,0.12549,190.78,190.72,15.73390112]
[1730946642786,23.902374,190.78,190.72,15.73390112]
[1730946643303,39.63627512,190.78,190.71,15.73390112]
[1730946643506,0.12549,190.74,190.69,15.73390112]
[1730946643807,0.12549,190.74,190.68,15.73390112]
[1730946644107,15.85939112,190.74,190.68,15.73390112]
[1730946644403,0.12549,190.74,190.7,15.73390112]
[1730946646110,0.12549,190.74,190.69,15.73390112]
[1730946647081,15.85939112,190.72,190.62,15.0401]
[1730946647285,15.85939112,190.7,190.64,15.73390112]
[1730946647513,0.12549,190.7,190.65,15.73390112]
[1730946647700,23.902374,190.7,190.65,15.73390112]
[1730946648396,23.902374,190.7,190.66,15.73390112]
[1730946648787,15.85939112,190.7,190.64,15.73390112]
[1730946648984,0.12549,190.66,190.61,15.73390112]
[1730946649306,15.85939112,190.66,190.6,15.73390112]
[1730946649491,0.12549,190.66,190.61,15.73390112]
[1730946650200,15.85939112,190.65,190.59,15.73390112]
[1730946650516,15.85939112,190.65,190.55,6.2978]
[1730946650517,15.73390112,190.62,190.56,15.73390112]
[1730946650687,15.73390112,190.61,190.55,15.73390112]
[1730946651205,0.12549,190.62,190.58,15.73390112]
[1730946651405,0.12549,190.62,190.57,15.73390112]
[1730946652320,15.73390112,190.62,190.56,15.73390112]
[1730946654186,0.12549,190.62,190.57,15.73390112]
[1730946654387,15.85939112,190.63,190.57,15.73390112]
[1730946654690,0.12549,190.63,190.58,15.73390112]
[1730946654891,15.73390112,190.65,190.59,15.73390112]
[1730946655118,23.776884,190.68,190.61,15.73390112]
[1730946655416,6.0085,190.72,190.66,15.73390112]
[1730946655598,0.12549,190.71,190.66,15.73390112]
[1730946656017,15.73390112,190.72,190.66,15.73390112]
[1730946656221,32.12850112,190.73,190.67,15.73390112]
[1730946656523,15.73390112,190.72,190.66,15.73390112]
[1730946656716,0.12549,190.71,190.66,15.73390112]
[1730946656905,15.73390112,190.71,190.65,15.73390112]
[1730946657398,15.85939112,190.72,190.65,15.73390112]
[1730946657605,15.73390112,190.72,190.65,15.73390112]
[1730946657923,15.73390112,190.71,190.65,15.73390112]
[1730946659129,15.73390112,190.68,190.61,31.78850112]
[1730946660018,15.73390112,190.68,190.62,15.73390112]
[1730946660325,15.85939112,190.69,190.62,15.73390112]
[1730946660903,15.73390112,190.68,190.62,15.73390112]
[1730946661459,15.73390112,190.64,190.58,15.73390112]
[1730946661603,15.73390112,190.63,190.57,31.41970112]
[1730946662426,15.73390112,190.64,190.58,15.73390112]
[1730946663017,15.73390112,190.64,190.57,15.73390112]
[1730946663209,15.73390112,190.63,190.57,15.73390112]
[1730946663411,15.73390112,190.61,190.55,15.73390112]
[1730946663622,15.73390112,190.6,190.54,15.73390112]
[1730946663936,15.73390112,190.61,190.55,15.73390112]
[1730946664499,0.12549,190.67,190.53,15.8415]
[1730946664500,0.12549,190.62,190.57,15.73390112]
[1730946664831,0.12549,190.63,190.58,15.73390112]
[1730946665000,0.12549,190.63,190.57,15.73390112]
[1730946665203,6.5375,190.68,190.62,15.73390112]
[1730946665512,15.73390112,190.71,190.65,15.73390112]
[1730946665708,0.12549,190.68,190.62,15.73390112]
[1730946665912,0.12549,190.68,190.55,0.1]
[1730946666231,0.12549,190.66,190.61,15.73390112]
[1730946666529,0.12549,190.66,190.59,15.73390112]
[1730946666530,0.12549,190.64,190.59,15.73390112]
[1730946666712,15.73390112,190.64,190.58,15.73390112]
[1730946667827,15.73390112,190.65,190.58,15.73390112]
[1730946668028,23.902374,190.63,190.58,15.73390112]
[1730946668223,15.73390112,190.61,190.54,15.73390112]
[1730946668423,15.73390112,190.61,190.53,15.8415]
[1730946668424,15.73390112,190.6,190.53,15.8415]
[1730946668628,23.902374,190.63,190.53,15.8415]
[1730946668629,15.73390112,190.61,190.55,15.73390112]
[1730946668933,15.73390112,190.62,190.55,15.73390112]
[1730946669133,15.73390112,190.61,190.55,15.73390112]
[1730946670137,23.902374,190.63,190.55,15.73390112]
[1730946670331,15.73390112,190.62,190.56,15.73390112]
[1730946670533,23.29359755,190.69,190.59,15.73390112]
[1730946670837,23.29359755,190.69,190.53,16.0415]
[1730946670838,23.776884,190.65,190.6,15.73390112]
[1730946671030,23.776884,190.65,190.53,16.0415]
[1730946671031,15.73390112,190.64,190.58,15.73390112]
[1730946671543,15.73390112,190.64,190.57,15.73390112]
[1730946672133,15.73390112,190.64,190.58,15.73390112]
[1730946672338,39.51078512,190.65,190.58,15.73390112]
[1730946673335,15.73390112,190.64,190.58,15.73390112]
[1730946673647,15.73390112,190.64,190.57,15.73390112]
[1730946673936,15.73390112,190.63,190.57,15.73390112]
[1730946674150,15.73390112,190.63,190.53,15.8415]
[1730946674151,15.73390112,190.63,190.56,15.73390112]
[1730946674310,15.73390112,190.61,190.55,15.73390112]
[1730946674933,39.51078512,190.61,190.55,15.73390112]
[1730946675118,15.73390112,190.6,190.54,15.73390112]
[1730946675310,39.51078512,190.61,190.55,15.73390112]
[1730946675507,23.776884,190.61,190.55,15.73390112]
[1730946676658,23.902374,190.62,190.56,15.73390112]
[1730946676958,15.73390112,190.61,190.55,15.73390112]
[1730946677244,15.73390112,190.59,190.53,15.73390112]